fUST/lending_fUST_20240302
["ID","MTS","AMOUNT","RATE_DAILY","PERIOD"]
[316002751,1709321446579,-560.02,0.0002222,2]
[316002752,1709321446588,-500.0,0.0002222,2]
[316002753,1709321446598,-500.0,0.0002222,2]
[316002754,1709321446607,-500.0,0.0002222,2]
[316002755,1709321446617,-300.0,0.000225,10]
[316002756,1709321446626,-620.00294962,0.00022584,2]
[316002757,1709321446636,-151.0,0.0002267,2]
[316002758,1709321446645,-1000.0,0.00023506,2]
[316002759,1709321446654,-1000.0,0.00023525,2]
[316002760,1709321446664,-1000.0,0.00023544,2]
[316002761,1709321446673,-1000.0,0.00023563,2]
[316002762,1709321446684,-1000.0,0.00023582,2]
[316002763,1709321446693,-485.03234632,0.00023597,2]
[316002764,1709321446703,-1000.0,0.00023602,2]
[316002765,1709321446712,-1000.0,0.00023621,2]
[316002766,1709321446721,-1000.0,0.0002364,2]
[316002767,1709321446730,-1000.0,0.00023659,2]
[316002768,1709321446740,-1000.0,0.00023678,2]
[316002769,1709321446749,-1000.0,0.00023697,2]
[316002770,1709321446758,-580.0,0.000237,2]
[316002771,1709321446768,-1000.0,0.00023717,2]
[316002772,1709321446777,-1000.0,0.00023736,2]
[316002773,1709321446786,-1000.0,0.00023755,2]
[316002774,1709321446795,-1000.0,0.00023774,2]
[316002775,1709321446805,-485.0323463,0.00023776,2]
[316002776,1709321446814,-1000.0,0.00023793,2]
[316002777,1709321446824,-1000.0,0.00023813,2]
[316002778,1709321446833,-1000.0,0.00023832,2]
[316002779,1709321446842,-1000.0,0.00023851,2]
[316002780,1709321446852,-1000.0,0.0002387,2]
[316002781,1709321446861,-1000.0,0.00023889,2]
[316002782,1709321446871,-571.46516516,0.000239,2]
[316002783,1709321446881,-1000.0,0.00023908,2]
[316002784,1709321446891,-1000.0,0.00023928,2]
[316002785,1709321446906,-1598.848548,0.00023947,2]
[316002786,1709321446916,-485.0323463,0.00023955,2]
[316002787,1709321446926,-11004.86544489,0.00024,5]
[316002788,1709321446935,-300.0,0.00024,11]
[316002790,1709321446946,-485.0323463,0.00024134,2]
[316002792,1709321446955,-973.87,0.00024293,2]
[316002794,1709321446965,-500.0,0.00024293,2]
[316002796,1709321446974,-500.0,0.00024293,2]
[316002797,1709321446983,-1211.05055465,0.00024303,2]
[316002800,1709321446993,-17129.21538234,0.00024312,2]
[316002801,1709321447003,-485.0323463,0.00024313,2]
[316002803,1709321447013,-500.0,0.00024382,2]
[316002806,1709321447023,-500.0,0.00024382,2]
[316002808,1709321447032,-500.0,0.00024382,2]
[316002810,1709321447043,-500.0,0.00024383,2]
[316002811,1709321447052,-500.0,0.00024383,2]
[316002813,1709321447062,-500.0,0.00024383,2]
[316002815,1709321447071,-500.0,0.00024383,2]
[316002818,1709321447081,-164.74,0.00024383,2]
[316002819,1709321447091,-3169.4,0.00024383,2]
[316002820,1709321447101,-500.0,0.00024383,2]
[316002821,1709321447111,-500.0,0.00024383,2]
[316002823,1709321447120,-153.0,0.00024384,2]
[316002825,1709321447130,-153.0,0.00024384,2]
[316002827,1709321447140,-153.0,0.00024384,2]
[316002829,1709321447150,-153.0,0.00024384,2]
[316002831,1709321447159,-153.0,0.00024384,2]
[316002833,1709321447169,-153.0,0.00024384,2]
[316002835,1709321447178,-153.0,0.00024384,2]
[316002837,1709321447188,-153.0,0.00024384,2]
[316002839,1709321447197,-153.0,0.00024384,2]
[316002841,1709321447207,-153.0,0.00024384,2]
[316002843,1709321447216,-153.0,0.00024384,2]
[316002845,1709321447226,-153.0,0.00024384,2]
[316002846,1709321447235,-200.7008514,0.00024384,2]
[316002848,1709321447245,-153.0,0.00024384,2]
[316002850,1709321447254,-153.0,0.00024384,2]
[316002852,1709321447263,-153.0,0.00024384,2]
[316002853,1709321447273,-153.0,0.00024384,2]
[316002854,1709321447282,-153.0,0.00024384,2]
[316002855,1709321447292,-153.0,0.00024384,2]
[316002856,1709321447302,-153.0,0.00024384,2]
[316002857,1709321447311,-153.0,0.00024384,2]
[316002858,1709321447321,-200.7008514,0.00024384,2]
[316002859,1709321447330,-153.0,0.00024384,2]
[316002860,1709321447340,-153.0,0.00024384,2]
[316002861,1709321447350,-153.0,0.00024384,2]
[316002862,1709321447359,-153.0,0.00024384,2]
[316002863,1709321447369,-153.0,0.00024384,2]
[316002864,1709321447379,-153.0,0.00024384,2]
[316002865,1709321447389,-153.0,0.00024384,2]
[316002866,1709321447399,-200.7008514,0.00024384,2]
[316002867,1709321447409,-153.0,0.00024384,2]
[316002868,1709321447418,-153.0,0.00024384,2]
[316002869,1709321447428,-153.0,0.00024384,2]
[316002870,1709321447437,-153.0,0.00024384,2]
[316002871,1709321447447,-153.0,0.00024384,2]
[316002872,1709321447457,-153.0,0.00024384,2]
[316002873,1709321447466,-153.0,0.00024384,2]
[316002874,1709321447477,-153.0,0.00024384,2]
[316002875,1709321447486,-153.0,0.00024384,2]
[316002876,1709321447496,-153.0,0.00024384,2]
[316002877,1709321447505,-200.7008514,0.00024384,2]
[316002878,1709321447515,-153.0,0.00024384,2]
[316002880,1709321447524,-153.0,0.00024384,2]
[316002882,1709321447534,-153.0,0.00024384,2]
[316002884,1709321447543,-155.2902054,0.00024384,2]
[316002886,1709321447553,-200.7008514,0.00024384,2]
[316002888,1709321447563,-200.7008514,0.00024384,2]
[316002890,1709321447573,-200.7008514,0.00024384,2]
[316002892,1709321447583,-200.7008514,0.00024384,2]
[316002893,1709321447593,-200.7008514,0.00024384,2]
[316002894,1709321447605,-200.7008514,0.00024384,2]
[316002895,1709321447615,-400.5863492,0.00024384,2]
[316002896,1709321447624,-153.4110428,0.00024384,2]
[316002897,1709321447634,-153.0,0.00024384,2]
[316002898,1709321447643,-153.0,0.00024384,2]
[316002899,1709321447654,-153.0,0.00024384,2]
[316002900,1709321447664,-153.0,0.00024384,2]
[316002901,1709321447673,-153.0,0.00024384,2]
[316002902,1709321447682,-306.0,0.00024384,2]
[316002903,1709321447692,-349.6153443,0.00024384,2]
[316002904,1709321447702,-200.7008514,0.00024384,2]
[316002905,1709321447711,-200.7008514,0.00024384,2]
[316002906,1709321447721,-153.0,0.00024384,2]
[316002907,1709321447730,-153.0,0.00024384,2]
[316002909,1709321447739,-200.5027851,0.00024384,2]
[316002911,1709321447749,-153.0,0.00024384,2]
[316002912,1709321447758,-153.0,0.00024384,2]
[316002913,1709321447768,-306.0,0.00024384,2]
[316002914,1709321447778,-153.4522704,0.00024384,2]
[316002915,1709321447788,-200.7008514,0.00024384,2]
[316002916,1709321447797,-200.7008514,0.00024384,2]
[316002917,1709321447806,-200.7008514,0.00024384,2]
[316002918,1709321447816,-200.7008514,0.00024384,2]
[316002919,1709321447825,-200.7008514,0.00024384,2]
[316002921,1709321447834,-200.7008514,0.00024384,2]
[316002923,1709321447843,-200.7008514,0.00024384,2]
[316002925,1709321447852,-399.5421671,0.00024384,2]
[316002927,1709321447861,-153.0,0.00024384,2]
[316002928,1709321447870,-155.43559933,0.00024392,2]
[316002930,1709321447879,-197.66602974,0.00024392,2]
[316002931,1709321447889,-1805.16962823,0.00024392,2]
[316002932,1709321447901,-158.07368737,0.00024392,2]
[316002933,1709321447911,-155.31370596,0.00024392,2]
[316002934,1709321447920,-155.52064643,0.00024392,2]
[316002935,1709321447930,-500.0,0.00024392,2]
[316002936,1709321447939,-500.0,0.00024392,2]
[316002937,1709321447949,-500.0,0.00024392,2]
[316002938,1709321447959,-500.0,0.00024392,2]
[316002939,1709321447968,-500.0,0.00024392,2]
[316002940,1709321447977,-500.0,0.00024392,2]
[316002941,1709321447988,-560.02,0.00024392,2]
[316002942,1709321447997,-500.0,0.00024392,2]
[316002943,1709321448006,-311.76,0.00024392,2]
[316002944,1709321448015,-311.76,0.00024392,2]
[316002945,1709321448024,-311.76,0.00024392,2]
[316002947,1709321448034,-311.76,0.00024392,2]
[316002949,1709321448043,-311.76,0.00024392,2]
[316002951,1709321448052,-500.0,0.00024392,2]
[316002953,1709321448062,-311.76,0.00024392,2]
[316002954,1709321448071,-311.76,0.00024392,2]
[316002956,1709321448080,-311.76,0.00024392,2]
[316002958,1709321448089,-157.54112556,0.00024392,2]
[316002963,1709321448135,-154.21887444,0.00024392,2]
[316002964,1709321448144,-311.76,0.00024392,2]
[316002966,1709321448153,-500.0,0.00024392,2]
[316002967,1709321448163,-500.0,0.00024392,2]
[316002969,1709321448172,-500.0,0.00024392,2]
[316002970,1709321448182,-194.33804633,0.00024393,2]
[316002972,1709321448191,-500.0,0.00024393,2]
[316002974,1709321448200,-500.0,0.00024393,2]
[316002975,1709321448210,-500.0,0.00024393,2]
[316002977,1709321448219,-500.0,0.00024393,2]
[316002979,1709321448229,-291.35,0.00024393,2]
[316002981,1709321448238,-500.0,0.00024393,2]
[316002983,1709321448247,-500.0,0.00024393,2]
[316002985,1709321448257,-500.0,0.00024393,2]
[316002986,1709321448267,-500.0,0.00024393,2]
[316002987,1709321448276,-500.0,0.00024393,2]
[316002988,1709321448285,-500.0,0.00024393,2]
[316002989,1709321448294,-500.0,0.00024393,2]
[316002990,1709321448303,-500.0,0.00024393,2]
[316002991,1709321448313,-500.0,0.00024393,2]
[316002992,1709321448322,-500.0,0.00024393,2]
[316002993,1709321448331,-500.0,0.00024393,2]
[316002994,1709321448341,-245.3,0.00024393,2]
[316002995,1709321448350,-500.0,0.00024393,2]
[316002996,1709321448359,-500.0,0.00024393,2]
[316002997,1709321448369,-500.0,0.00024393,2]
[316002998,1709321448387,-500.0,0.00024393,2]
[316002999,1709321448398,-500.0,0.00024393,2]
[316003000,1709321448407,-390.95904468,0.00024393,2]
[316003094,1709322632448,-926.94993445,0.00019098,2]
[316003096,1709322632458,-1250.25966196,0.00019099,2]
[316003098,1709322632467,-155.15204901,0.00019099,2]
[316003100,1709322632477,-15928.06357623,0.00019099,2]
[316003102,1709322632487,-4329.59429208,0.000191,2]
[316003104,1709322632496,-155.15204901,0.000191,2]
[316003106,1709322632505,-166.71132,0.00019238,2]
[316003108,1709322632515,-238.53127687,0.00020441,2]
[316003110,1709322632524,-1609.15951127,0.00020442,5]
[316003112,1709322632533,-3971.02076271,0.00020444,5]
[316003114,1709322632542,-166.46955671,0.00020447,2]
[316003116,1709322632551,-187.25864343,0.00020533,2]
[316003118,1709322632560,-1455.79040027,0.00020533,3]
[316003120,1709322632570,-500.0,0.00020547,2]
[316003123,1709322632580,-500.0,0.00020547,2]
[316003124,1709322632590,-500.0,0.00020547,2]
[316003125,1709322632600,-500.0,0.00020547,2]
[316003126,1709322632609,-500.0,0.00020547,2]
[316003127,1709322632618,-498.19884695,0.00020547,2]
[316003128,1709322632627,-500.0,0.00020547,2]
[316003129,1709322632636,-500.0,0.00020547,2]
[316003130,1709322632645,-500.0,0.00020547,2]
[316003131,1709322632655,-500.0,0.00020547,2]
[316003132,1709322632664,-500.0,0.00020547,2]
[316003133,1709322632674,-500.0,0.00020547,2]
[316003134,1709322632683,-301.607414,0.00021,9]
[316003135,1709322632692,-224.07182095,0.00021176,2]
[316003136,1709322632703,-500.0,0.00021907,2]
[316003137,1709322632713,-500.0,0.00021907,2]
[316003138,1709322632724,-500.0,0.00021907,2]
[316003139,1709322632734,-513.77,0.00021908,3]
[316003140,1709322632743,-979.73,0.00021908,3]
[316003141,1709322632752,-816.44,0.00021908,3]
[316003142,1709322632762,-680.36,0.00021908,3]
[316003143,1709322632770,-500.0,0.00021917,2]
[316003144,1709322632780,-500.0,0.00021917,2]
[316003145,1709322632789,-500.0,0.00021917,2]
[316003146,1709322632799,-500.0,0.00021917,2]
[316003147,1709322632808,-585.85,0.00021917,2]
[316003148,1709322632817,-500.0,0.00021917,2]
[316003149,1709322632827,-513.35,0.00021917,2]
[316003150,1709322632836,-1413.25406,0.00021918,2]
[316003151,1709322632846,-51927.2960889,0.00021918,15]
[316003152,1709322632855,-400.0,0.00021918,2]
[316003153,1709322632864,-500.0,0.00021997,2]
[316003154,1709322632873,-500.0,0.00021997,2]
[316003155,1709322632882,-500.0,0.00021997,2]
[316003156,1709322632892,-513.35,0.00021997,2]
[316003157,1709322632901,-500.0,0.00021998,2]
[316003158,1709322632910,-500.0,0.00021998,2]
[316003159,1709322632920,-1008.24,0.00021998,2]
[316003160,1709322632929,-500.0,0.00021998,2]
[316003161,1709322632939,-500.0,0.00021998,2]
[316003162,1709322632948,-500.0,0.00021998,2]
[316003163,1709322632957,-500.0,0.00021998,2]
[316003164,1709322632966,-500.0,0.00021999,2]
[316003165,1709322632976,-753.68005569,0.00022,2]
[316003166,1709322632986,-301.62651318,0.00022213,2]
[316003167,1709322632995,-190.48838839,0.00022284,2]
[316003168,1709322633004,-249.0,0.0002267,2]
[316003169,1709322633013,-1000.0,0.00023128,5]
[316003170,1709322633022,-500.0,0.0002341,2]
[316003171,1709322633033,-500.0,0.0002341,2]
[316003172,1709322633042,-1008.24,0.0002341,2]
[316003173,1709322633052,-3037.34,0.0002341,2]
[316003174,1709322633062,-3037.34,0.0002341,2]
[316003175,1709322633071,-500.0,0.0002341,2]
[316003176,1709322633080,-500.0,0.0002341,2]
[316003177,1709322633090,-500.0,0.0002341,2]
[316003178,1709322633099,-500.0,0.0002341,2]
[316003179,1709322633109,-1413.25406,0.00023452,2]
[316003180,1709322633118,-500.0,0.00023601,2]
[316003181,1709322633127,-871.0,0.000241,2]
[316003182,1709322633135,-647.0,0.00024311,2]
[316003183,1709322633144,-500.0,0.00024311,2]
[316003184,1709322633154,-500.0,0.00024311,2]
[316003185,1709322633164,-500.0,0.00024311,2]
[316003186,1709322633173,-500.0,0.00024311,2]
[316003187,1709322633182,-500.0,0.00024311,2]
[316003188,1709322633191,-500.0,0.00024311,2]
[316003189,1709322633200,-500.0,0.00024381,2]
[316003190,1709322633210,-500.0,0.00024381,2]
[316003191,1709322633219,-8240.72671317,0.00024385,2]
[316003192,1709322633229,-538.9346199,0.00024391,2]
[316003193,1709322633238,-500.0,0.00024391,2]
[316003194,1709322633250,-500.0,0.00024391,2]
[316003195,1709322633259,-524.55,0.00024391,2]
[316003196,1709322633268,-1008.24,0.00024391,2]
[316003197,1709322633277,-500.0,0.00024391,2]
[316003198,1709322633287,-500.0,0.00024391,2]
[316003199,1709322633297,-500.0,0.00024391,2]
[316003200,1709322633306,-500.0,0.00024391,2]
[316003201,1709322633315,-500.0,0.00024391,2]
[316003202,1709322633327,-513.35,0.00024391,2]
[316003203,1709322633338,-500.0,0.00024392,2]
[316003204,1709322633347,-500.0,0.00024392,2]
[316003205,1709322633356,-500.0,0.00024392,2]
[316003206,1709322633366,-500.0,0.00024392,2]
[316003207,1709322633375,-500.0,0.00024392,2]
[316003208,1709322633384,-500.0,0.00024392,2]
[316003209,1709322633393,-500.0,0.00024392,2]
[316003210,1709322633402,-500.0,0.00024392,2]
[316003211,1709322633412,-500.0,0.00024392,2]
[316003212,1709322633421,-500.0,0.00024392,2]
[316003213,1709322633430,-500.0,0.00024392,2]
[316003214,1709322633439,-500.0,0.00024392,2]
[316003215,1709322633449,-500.0,0.00024392,2]
[316003216,1709322633458,-500.0,0.00024392,2]
[316003217,1709322633469,-500.0,0.00024392,2]
[316003218,1709322633479,-500.0,0.00024392,2]
[316003219,1709322633490,-500.0,0.00024392,2]
[316003220,1709322633499,-1008.24,0.00024392,2]
[316003221,1709322633508,-1008.24,0.00024392,2]
[316003222,1709322633517,-3037.34,0.00024392,2]
[316003223,1709322633526,-3037.34,0.00024392,2]
[316003224,1709322633536,-3037.34,0.00024392,2]
[316003225,1709322633546,-500.0,0.00024392,2]
[316003226,1709322633555,-639.38127322,0.00024392,2]
[316003227,1709322633564,-500.0,0.00024392,2]
[316003228,1709322633573,-500.0,0.00024392,2]
[316003229,1709322633582,-500.0,0.00024392,2]
[316003230,1709322633592,-500.0,0.00024392,2]
[316003231,1709322633602,-500.0,0.00024392,2]
[316003232,1709322633612,-500.0,0.00024392,2]
[316003233,1709322633621,-500.0,0.00024392,2]
[316003234,1709322633631,-155.11478494,0.00024393,2]
[316003235,1709322633641,-500.0,0.00024393,2]
[316003236,1709322633650,-500.0,0.00024393,2]
[316003237,1709322633660,-500.0,0.00024393,2]
[316003238,1709322633670,-500.0,0.00024393,2]
[316003239,1709322633679,-331.8996821,0.00024393,2]
[316003240,1709322633689,-500.0,0.000244,2]
[316003241,1709322633698,-513.35,0.00024409,2]
[316003242,1709322633809,-248.14962785,0.0002441,2]
[316003243,1709322633819,-500.0,0.0002441,2]
[316003244,1709322633829,-500.0,0.0002441,2]
[316003245,1709322633838,-500.0,0.0002441,2]
[316003246,1709322633847,-500.0,0.0002441,2]
[316003247,1709322633857,-500.0,0.0002441,2]
[316003248,1709322633867,-589.23,0.0002441,2]
[316003249,1709322633876,-500.0,0.0002441,2]
[316003250,1709322633886,-500.0,0.0002441,2]
[316003251,1709322633895,-234.2,0.0002441,2]
[316003252,1709322633905,-1008.24,0.0002441,2]
[316003253,1709322633914,-1008.24,0.0002441,2]
[316003254,1709322633924,-1008.24,0.0002441,2]
[316003255,1709322633933,-1008.24,0.0002441,2]
[316003256,1709322633943,-1008.24,0.0002441,2]
[316003257,1709322633953,-1008.24,0.0002441,2]
[316003258,1709322633962,-1008.24,0.0002441,2]
[316003259,1709322633971,-1008.24,0.0002441,2]
[316003260,1709322633981,-1008.24,0.0002441,2]
[316003261,1709322633990,-1008.24,0.0002441,2]
[316003262,1709322633999,-1008.24,0.0002441,2]
[316003263,1709322634009,-1008.24,0.0002441,2]
[316003264,1709322634018,-1008.24,0.0002441,2]
[316003265,1709322634027,-1008.24,0.0002441,2]
[316003266,1709322634037,-1008.24,0.0002441,2]
[316003267,1709322634046,-1008.24,0.0002441,2]
[316003268,1709322634055,-1008.24,0.0002441,2]
[316003269,1709322634065,-1008.24,0.0002441,2]
[316003270,1709322634074,-1008.28206413,0.0002441,2]
[316003271,1709322634083,-3037.34,0.0002441,2]
[316003272,1709322634093,-3037.34,0.0002441,2]
[316003273,1709322634102,-3037.34,0.0002441,2]
[316003274,1709322634112,-3037.34,0.0002441,2]
[316003275,1709322634121,-3037.34,0.0002441,2]
[316003276,1709322634131,-3037.34,0.0002441,2]
[316003277,1709322634140,-3037.34,0.0002441,2]
[316003278,1709322634149,-3037.34,0.0002441,2]
[316003279,1709322634159,-3037.34,0.0002441,2]
[316003280,1709322634169,-3037.34,0.0002441,2]
[316003281,1709322634179,-3037.34,0.0002441,2]
[316003282,1709322634188,-3037.34,0.0002441,2]
[316003283,1709322634198,-3037.34,0.0002441,2]
[316003284,1709322634207,-3037.34,0.0002441,2]
[316003285,1709322634216,-3037.34,0.0002441,2]
[316003286,1709322634226,-3037.34,0.0002441,2]
[316003287,1709322634236,-3037.34,0.0002441,2]
[316003288,1709322634249,-3037.34,0.0002441,2]
[316003289,1709322634258,-3037.53,0.0002441,2]
[316003290,1709322634268,-500.0,0.0002441,2]
[316003291,1709322634278,-500.0,0.0002441,2]
[316003292,1709322634288,-500.0,0.0002441,2]
[316003293,1709322634297,-500.0,0.0002441,2]
[316003294,1709322634307,-500.0,0.0002441,2]
[316003295,1709322634317,-500.0,0.0002441,2]
[316003296,1709322634326,-500.0,0.0002441,2]
[316003297,1709322634335,-500.0,0.0002441,2]
[316003298,1709322634344,-500.0,0.0002441,2]
[316003299,1709322634354,-500.0,0.0002441,2]
[316003300,1709322634362,-500.0,0.0002441,2]
[316003301,1709322634382,-275.14393247,0.0002441,2]
[316003302,1709322634392,-500.0,0.0002441,2]
[316003303,1709322634402,-500.0,0.0002441,2]
[316003304,1709322634412,-500.0,0.0002441,2]
[316003305,1709322634422,-500.0,0.0002441,2]
[316003306,1709322634432,-500.0,0.0002441,2]
[316003307,1709322634442,-500.0,0.0002441,2]
[316003308,1709322634452,-500.0,0.0002441,2]
[316003309,1709322634461,-500.0,0.0002441,2]
[316003310,1709322634472,-228.18,0.0002441,2]
[316003311,1709322634482,-500.0,0.0002441,2]
[316003312,1709322634492,-500.0,0.0002441,2]
[316003313,1709322634501,-500.0,0.0002441,2]
[316003314,1709322634511,-500.0,0.0002441,2]
[316003315,1709322634521,-500.0,0.0002441,2]
[316003316,1709322634531,-500.0,0.0002441,2]
[316003317,1709322634541,-500.0,0.0002441,2]
[316003318,1709322634550,-500.0,0.0002441,2]
[316003319,1709322634560,-195.21801761,0.0002441,2]
[316003320,1709322634570,-513.35,0.0002441,2]
[316003321,1709322634579,-1390.26247228,0.00024411,2]
[316003322,1709322634589,-151.0,0.00024411,2]
[316003323,1709322634600,-184.0,0.00024411,2]
[316003324,1709322634609,-151.0,0.00024411,2]
[316003325,1709322634619,-151.0,0.00024411,2]
[316003326,1709322634629,-151.161043,0.00024411,2]
[316003327,1709322634638,-500.0,0.00024411,2]
[316003328,1709322634648,-500.0,0.00024411,2]
[316003329,1709322634657,-500.0,0.00024411,2]
[316003330,1709322634666,-500.0,0.00024411,2]
[316003331,1709322634676,-267.68,0.00024411,2]
[316003332,1709322634685,-500.0,0.00024411,2]
[316003333,1709322634694,-500.0,0.00024411,2]
[316003334,1709322634703,-513.35,0.00024411,2]
[316003335,1709322634712,-500.0,0.00024424,2]
[316003336,1709322634722,-500.0,0.00024424,2]
[316003337,1709322634731,-513.35,0.00024424,2]
[316003338,1709322634741,-560.42052454,0.00024424,2]
[316003339,1709322634750,-500.0,0.00024424,2]
[316003340,1709322634760,-500.0,0.00024424,2]
[316003341,1709322634769,-500.0,0.00024424,2]
[316003342,1709322634779,-500.0,0.00024424,2]
[316003343,1709322634788,-485.22740855,0.00024424,2]
[316003344,1709322634797,-500.0,0.00024424,2]
[316003345,1709322634806,-500.0,0.00024424,2]
[316003346,1709322634815,-500.0,0.00024424,2]
[316003347,1709322634824,-500.0,0.00024424,2]
[316003348,1709322634834,-500.0,0.00024424,2]
[316003349,1709322634843,-500.0,0.00024424,2]
[316003350,1709322634852,-500.0,0.00024424,2]
[316003351,1709322634861,-500.0,0.00024424,2]
[316003352,1709322634871,-500.0,0.00024424,2]
[316003353,1709322634880,-500.0,0.00024424,2]
[316003354,1709322634890,-500.0,0.00024424,2]
[316003355,1709322634900,-500.0,0.00024424,2]
[316003356,1709322634909,-546.52670973,0.00024424,2]
[316003357,1709322634919,-195.0,0.00024424,2]
[316003358,1709322634928,-234.58356315,0.00024424,2]
[316003359,1709322634937,-353.06655649,0.00024425,5]
[316003360,1709322634947,-217.58548157,0.00024425,5]
[316003361,1709322634956,-569.93901725,0.00024425,5]
[316003362,1709322634965,-541.44206638,0.00024425,5]
[316003363,1709322634985,-1042.03730196,0.00024425,5]
[316003364,1709322634998,-151.0,0.00024425,2]
[316003365,1709322635011,-151.0,0.00024425,2]
[316003366,1709322635023,-151.0,0.00024425,2]
[316003367,1709322635036,-151.0,0.00024425,2]
[316003368,1709322635050,-104.07800889,0.00024425,2]
[316003403,1709322643459,-500.0,0.00021917,2]
[316003404,1709322643470,-3607.9952434,0.00024424,2]
[316003405,1709322643482,-46.92199111,0.00024425,2]
[316003406,1709322643494,-151.0,0.00024425,2]
[316003407,1709322643504,-151.260597,0.00024425,2]
[316003408,1709322643515,-151.0,0.00024425,2]
[316003409,1709322643525,-299.067643,0.00024425,2]
[316003410,1709322643535,-151.0,0.00024425,2]
[316003411,1709322643546,-151.0,0.00024425,2]
[316003412,1709322643556,-151.0,0.00024425,2]
[316003413,1709322643568,-151.0,0.00024425,2]
[316003414,1709322643579,-151.0,0.00024425,2]
[316003415,1709322643591,-151.0,0.00024425,2]
[316003416,1709322643602,-151.0,0.00024425,2]
[316003417,1709322643613,-151.0,0.00024425,2]
[316003418,1709322643623,-151.0,0.00024425,2]
[316003419,1709322643634,-151.0,0.00024425,2]
[316003420,1709322643645,-151.0,0.00024425,2]
[316003421,1709322643657,-151.0,0.00024425,2]
[316003423,1709322643667,-151.0,0.00024425,2]
[316003424,1709322643678,-151.0,0.00024425,2]
[316003425,1709322643688,-151.0,0.00024425,2]
[316003426,1709322643698,-151.0,0.00024425,2]
[316003427,1709322643708,-151.0,0.00024425,2]
[316003428,1709322643718,-159.193095,0.00024425,2]
[316003429,1709322643728,-164.486278,0.00024425,2]
[316003430,1709322643738,-164.486278,0.00024425,2]
[316003431,1709322643748,-164.486278,0.00024425,2]
[316003433,1709322643759,-164.486278,0.00024425,2]
[316003435,1709322643769,-164.486278,0.00024425,2]
[316003437,1709322643780,-164.486278,0.00024425,2]
[316003439,1709322643790,-164.486278,0.00024425,2]
[316003440,1709322643800,-164.486278,0.00024425,2]
[316003441,1709322643810,-164.486278,0.00024425,2]
[316003443,1709322643820,-164.486278,0.00024425,2]
[316003445,1709322643830,-164.486278,0.00024425,2]
[316003446,1709322643840,-164.486278,0.00024425,2]
[316003448,1709322643851,-164.486278,0.00024425,2]
[316003449,1709322643861,-164.486278,0.00024425,2]
[316003450,1709322643871,-164.486278,0.00024425,2]
[316003451,1709322643882,-164.486278,0.00024425,2]
[316003452,1709322643892,-164.486278,0.00024425,2]
[316003453,1709322643902,-164.486278,0.00024425,2]
[316003454,1709322643913,-164.486278,0.00024425,2]
[316003455,1709322643923,-164.486269,0.00024425,2]
[316003456,1709322643934,-151.0,0.00024425,2]
[316003457,1709322643945,-151.0,0.00024425,2]
[316003458,1709322643956,-151.0,0.00024425,2]
[316003459,1709322644069,-234.302427,0.00024425,2]
[316003460,1709322644082,-500.0,0.00024425,2]
[316003461,1709322644091,-500.0,0.00024425,2]
[316003462,1709322644101,-154.76868611,0.00024425,2]
[316003463,1709322644110,-196.63864603,0.00024425,5]